[Event "*** Titled Tuesday Blitz"]
[Site "Chess.com"]
[Date "2021.04.20"]
[Round "5"]
[White "GameOverBro"]
[Black "AsaHoffmann"]
[Result "0-1"]
[WhiteElo "2524"]
[BlackElo "2352"]
[TimeControl "180+1"]
[EndTime "10:55:56 PDT"]
[Termination "AsaHoffmann won by resignation"]

1. e4 {[%clk 0:03:00.9]} 1... d6 {[%clk 0:02:59.4]} 2. d4 {[%clk 0:03:00.8]}
2... Nf6 {[%clk 0:02:55.3]} 3. Nc3 {[%clk 0:03:01.2]} 3... c6 {[%clk 0:02:55.1]}
4. a4 {[%clk 0:02:58.5]} 4... Qa5 {[%clk 0:02:54]} 5. Bd3 {[%clk 0:02:51.8]}
5... e5 {[%clk 0:02:49.4]} 6. Nf3 {[%clk 0:02:41.3]} 6... Bg4 {[%clk 0:02:48.5]}
7. dxe5 {[%clk 0:02:28.7]} 7... dxe5 {[%clk 0:02:47.9]} 8. h3 {[%clk 0:02:28.2]}
8... Bh5 {[%clk 0:02:47.2]} 9. g4 {[%clk 0:02:28.3]} 9... Bg6 {[%clk 0:02:46.9]}
10. Bd2 {[%clk 0:02:28.9]} 10... Qc7 {[%clk 0:02:45.8]} 11. h4 {[%clk
0:02:26.8]} 11... h5 {[%clk 0:02:44.8]} 12. g5 {[%clk 0:02:24]} 12... Ng4 {[%clk
0:02:43.4]} 13. a5 {[%clk 0:02:09.3]} 13... Bc5 {[%clk 0:02:42.2]} 14. Rf1
{[%clk 0:02:09.5]} 14... Nd7 {[%clk 0:02:38.5]} 15. Na4 {[%clk 0:02:09.6]} 15...
Rd8 {[%clk 0:02:14]} 16. Qe2 {[%clk 0:02:06.5]} 16... Be7 {[%clk 0:02:03.9]} 17.
b4 {[%clk 0:02:01.2]} 17... O-O {[%clk 0:02:01.1]} 18. Bc4 {[%clk 0:01:57.8]}
18... b5 {[%clk 0:01:57.7]} 19. axb6 {[%clk 0:01:56.2]} 19... axb6 {[%clk
0:01:57.8]} 20. Bb3 {[%clk 0:01:54.6]} 20... b5 {[%clk 0:01:56.3]} 21. Nb2
{[%clk 0:01:52.6]} 21... Nb6 {[%clk 0:01:52]} 22. Bc3 {[%clk 0:01:39.1]} 22...
Ra8 {[%clk 0:01:34.2]} 23. Rd1 {[%clk 0:01:37.5]} 23... Rfd8 {[%clk 0:01:33.8]}
24. Nd2 {[%clk 0:01:23.2]} 24... c5 {[%clk 0:01:20.4]} 25. Qxb5 {[%clk
0:01:13.6]} 25... cxb4 {[%clk 0:01:16.4]} 26. Bxb4 {[%clk 0:01:14.5]} 26... Bxb4
{[%clk 0:01:10.7]} 27. Qxb4 {[%clk 0:01:15.4]} 27... Rd4 {[%clk 0:01:08.5]} 28.
Qb5 {[%clk 0:00:54.7]} 28... Rad8 {[%clk 0:01:02.3]} 29. Nd3 {[%clk 0:00:41.8]}
29... Bxe4 {[%clk 0:00:58.1]} 30. f3 {[%clk 0:00:35]} 30... Bxd3 {[%clk
0:00:56.9]} 31. cxd3 {[%clk 0:00:33.7]} 31... Ne3 {[%clk 0:00:56.5]} 32. g6
{[%clk 0:00:32.1]} 32... Nxd1 {[%clk 0:00:42.6]} 33. gxf7+ {[%clk 0:00:23.9]}
33... Kf8 {[%clk 0:00:41.9]} 34. Kxd1 {[%clk 0:00:12.3]} 34... Rxd3 {[%clk
0:00:41.2]} 35. Rf2 {[%clk 0:00:11.3]} 35... Qd6 {[%clk 0:00:36.8]} 36. Ke1
{[%clk 0:00:03.5]} 36... Rxd2 {[%clk 0:00:33.9]} 37. Kf1 {[%clk 0:00:02.3]}
37... Rxf2+ {[%clk 0:00:32]} 38. Kxf2 {[%clk 0:00:03.2]} 38... Nd5 {[%clk
0:00:30.7]} 39. Kg2 {[%clk 0:00:03.2]} 39... Kxf7 {[%clk 0:00:29.2]} 40. Qd3
{[%clk 0:00:02.6]} 40... Kf6 {[%clk 0:00:27.9]} 41. Qe4 {[%clk 0:00:02.2]} 41...
Nf4+ {[%clk 0:00:27.3]} 42. Kg3 {[%clk 0:00:02.8]} 42... g6 {[%clk 0:00:24.2]}
43. Qb7 {[%clk 0:00:02.3]} 43... Qe7 {[%clk 0:00:20.4]} 44. Qb6+ {[%clk
0:00:02.6]} 44... Kg7 {[%clk 0:00:20.3]} 45. Qe3 {[%clk 0:00:03.5]} 45... Rf8
{[%clk 0:00:19]} 46. Qe4 {[%clk 0:00:03.7]} 46... Qf6 {[%clk 0:00:18.9]} 47. Bc2
{[%clk 0:00:04.6]} 47... Qf5 {[%clk 0:00:16.2]} 48. Qb7+ {[%clk 0:00:05.2]}
48... Qf7 {[%clk 0:00:15.9]} 49. Qe4 {[%clk 0:00:05.8]} 49... Qf6 {[%clk
0:00:15.7]} 50. Qb7+ {[%clk 0:00:05.7]} 50... Rf7 {[%clk 0:00:15.5]} 51. Qe4
{[%clk 0:00:06.6]} 51... Ne6 {[%clk 0:00:13.4]} 52. Kg2 {[%clk 0:00:06]} 52...
Qxf3+ {[%clk 0:00:12.4]} 53. Qxf3 {[%clk 0:00:05.9]} 53... Rxf3 {[%clk
0:00:12.2]} 54. Kxf3 {[%clk 0:00:06.8]} 54... Nd4+ {[%clk 0:00:12.2]} 55. Ke4
{[%clk 0:00:06]} 55... Nxc2 {[%clk 0:00:12]} 56. Kxe5 {[%clk 0:00:06.9]} 56...
Kh6 {[%clk 0:00:11.9]} 57. Kf4 {[%clk 0:00:07.5]} 57... Nd4 {[%clk 0:00:11.6]}
58. Ke4 {[%clk 0:00:07.6]} 58... Nf5 {[%clk 0:00:11.4]} 59. Kf4 {[%clk
0:00:08.5]} 59... Nxh4 {[%clk 0:00:11.5]} 60. Kg3 {[%clk 0:00:09.4]} 60... Kg5
{[%clk 0:00:11.5]} 61. Kh3 {[%clk 0:00:10.3]} 61... Nf5 {[%clk 0:00:11.1]} 62.
Kh2 {[%clk 0:00:10]} 62... Kg4 {[%clk 0:00:11.2]} 63. Kg2 {[%clk 0:00:10.9]}
63... h4 {[%clk 0:00:11.4]} 64. Kh2 {[%clk 0:00:11.8]} 64... h3 {[%clk
0:00:11.5]} 65. Kh1 {[%clk 0:00:12.1]} 65... Kg3 {[%clk 0:00:11.6]} 66. Kg1
{[%clk 0:00:13]} 66... Nd6 {[%clk 0:00:11.4]} 67. Kh1 {[%clk 0:00:13.9]} 67...
Ne4 {[%clk 0:00:11.4]} 68. Kg1 {[%clk 0:00:14.8]} 68... Nf2 {[%clk 0:00:11.3]}
69. Kf1 {[%clk 0:00:14.9]} 69... h2 {[%clk 0:00:11.4]} 70. Ke2 {[%clk
0:00:15.8]} 70... h1=Q {[%clk 0:00:11]} 71. Ke3 {[%clk 0:00:16.7]} 71... Qe4+
{[%clk 0:00:10.6]} 72. Kd2 {[%clk 0:00:17.1]} 72... Ng4 {[%clk 0:00:10.5]} 73.
Kd1 {[%clk 0:00:17.2]} 73... Qg2 {[%clk 0:00:09.9]} 74. Ke1 {[%clk 0:00:17]}
74... Kf4 {[%clk 0:00:09.9]} 75. Kd1 {[%clk 0:00:17.9]} 75... Ke4 {[%clk
0:00:10.1]} 76. Kc1 {[%clk 0:00:18.8]} 76... Kd3 {[%clk 0:00:10.3]} 0-1

[Event "*** Titled Tuesday Blitz"]
[Site "Chess.com"]
[Date "2021.04.20"]
[Round "5"]
[White "MikeSailer"]
[Black "A-S-00"]
[Result "0-1"]
[WhiteElo "2172"]
[BlackElo "2333"]
[TimeControl "180+1"]
[EndTime "10:55:57 PDT"]
[Termination "A-S-00 won on time"]

1. d4 {[%clk 0:03:00.5]} 1... Nf6 {[%clk 0:02:49.8]} 2. Nf3 {[%clk 0:03:01.4]}
2... g6 {[%clk 0:02:46]} 3. Bf4 {[%clk 0:03:01.9]} 3... Bg7 {[%clk 0:02:45]} 4.
e3 {[%clk 0:03:02.7]} 4... d6 {[%clk 0:02:45.4]} 5. Be2 {[%clk 0:03:03.3]} 5...
O-O {[%clk 0:02:45.6]} 6. O-O {[%clk 0:03:04]} 6... Nbd7 {[%clk 0:02:45.8]} 7.
h3 {[%clk 0:03:04.5]} 7... c6 {[%clk 0:02:43.2]} 8. c4 {[%clk 0:03:04.8]} 8...
a5 {[%clk 0:02:32]} 9. Nc3 {[%clk 0:03:03.9]} 9... Qc7 {[%clk 0:02:27.3]} 10. a3
{[%clk 0:03:04.1]} 10... e5 {[%clk 0:02:26.5]} 11. Bh2 {[%clk 0:03:04]} 11...
Rd8 {[%clk 0:02:19.5]} 12. b4 {[%clk 0:03:02.7]} 12... axb4 {[%clk 0:02:11.7]}
13. axb4 {[%clk 0:03:03.2]} 13... Rxa1 {[%clk 0:02:10.5]} 14. Qxa1 {[%clk
0:03:03]} 14... b6 {[%clk 0:02:03.5]} 15. b5 {[%clk 0:02:49.3]} 15... Bb7 {[%clk
0:02:00.9]} 16. bxc6 {[%clk 0:02:46.5]} 16... Bxc6 {[%clk 0:02:00.2]} 17. d5
{[%clk 0:02:27.6]} 17... Bb7 {[%clk 0:01:53.5]} 18. Nb5 {[%clk 0:02:27.5]} 18...
Qb8 {[%clk 0:01:45.5]} 19. Nd2 {[%clk 0:02:21.9]} 19... Nc5 {[%clk 0:01:42.2]}
20. f3 {[%clk 0:02:01.4]} 20... e4 {[%clk 0:01:38.5]} 21. Qb1 {[%clk 0:01:47]}
21... exf3 {[%clk 0:01:34.3]} 22. Bxf3 {[%clk 0:01:32.5]} 22... Ne8 {[%clk
0:01:20.2]} 23. Ne4 {[%clk 0:01:27.1]} 23... Nxe4 {[%clk 0:01:16.6]} 24. Qxe4
{[%clk 0:01:26.1]} 24... Qc8 {[%clk 0:01:13.5]} 25. Bg4 {[%clk 0:01:19.8]} 25...
f5 {[%clk 0:01:02.6]} 26. Qe6+ {[%clk 0:01:19.8]} 26... Qxe6 {[%clk 0:01:00.1]}
27. dxe6 {[%clk 0:01:16.8]} 27... fxg4 {[%clk 0:00:59.1]} 28. Rf7 {[%clk
0:01:10.3]} 28... Bc8 {[%clk 0:00:54.6]} 29. Re7 {[%clk 0:00:31.7]} 29... Bf6
{[%clk 0:00:38.9]} 30. Ra7 {[%clk 0:00:23.5]} 30... Bxe6 {[%clk 0:00:38.2]} 31.
hxg4 {[%clk 0:00:23]} 31... Bxc4 {[%clk 0:00:36.8]} 32. Nd4 {[%clk 0:00:18.5]}
32... b5 {[%clk 0:00:32.2]} 33. Nc6 {[%clk 0:00:16.5]} 33... Rc8 {[%clk
0:00:30.3]} 34. Nb4 {[%clk 0:00:13.8]} 34... Bc3 {[%clk 0:00:27.5]} 35. Na6
{[%clk 0:00:12.2]} 35... b4 {[%clk 0:00:26.5]} 36. Nxb4 {[%clk 0:00:08.5]} 36...
Bxb4 {[%clk 0:00:26.2]} 37. Ra4 {[%clk 0:00:07.2]} 37... Bc5 {[%clk 0:00:24]}
38. Kf2 {[%clk 0:00:04.6]} 38... d5 {[%clk 0:00:23.6]} 39. Bf4 {[%clk
0:00:04.4]} 39... Nd6 {[%clk 0:00:22.7]} 40. Be5 {[%clk 0:00:03.4]} 40... Ne4+
{[%clk 0:00:22.1]} 41. Kf3 {[%clk 0:00:03.1]} 41... Rf8+ {[%clk 0:00:20.8]} 42.
Bf4 {[%clk 0:00:02.7]} 42... g5 {[%clk 0:00:18.5]} 43. g3 {[%clk 0:00:02.3]}
43... gxf4 {[%clk 0:00:18.5]} 44. gxf4 {[%clk 0:00:02.9]} 44... Nd2+ {[%clk
0:00:18.8]} 45. Kf2 {[%clk 0:00:02.9]} 45... d4 {[%clk 0:00:19.1]} 46. exd4
{[%clk 0:00:03.3]} 46... Bxd4+ {[%clk 0:00:19.4]} 47. Kg3 {[%clk 0:00:04]} 47...
Be3 {[%clk 0:00:16.5]} 48. Kg2 {[%clk 0:00:02.9]} 48... Bxf4 {[%clk 0:00:15.7]}
49. Kf2 {[%clk 0:00:02.1]} 49... Bd6+ {[%clk 0:00:14.4]} 50. Ke3 {[%clk
0:00:02.7]} 50... Nf1+ {[%clk 0:00:14.1]} 51. Kd4 {[%clk 0:00:02.4]} 51... Rf4+
{[%clk 0:00:14]} 52. Kc3 {[%clk 0:00:02.3]} 52... Be5+ {[%clk 0:00:14.2]} 53.
Kc2 {[%clk 0:00:02.4]} 53... Bd3+ {[%clk 0:00:14.5]} 54. Kxd3 {[%clk 0:00:02.6]}
54... Rxa4 {[%clk 0:00:14.4]} 0-1

[Event "*** Titled Tuesday Blitz"]
[Site "Chess.com"]
[Date "2021.04.20"]
[Round "5"]
[White "Arystanner"]
[Black "Didici"]
[Result "1-0"]
[WhiteElo "2807"]
[BlackElo "2595"]
[TimeControl "180+1"]
[EndTime "10:55:59 PDT"]
[Termination "Arystanner won on time"]

1. e4 {[%clk 0:03:00.9]} 1... e5 {[%clk 0:02:54.8]} 2. Nf3 {[%clk 0:03:01.2]}
2... Nc6 {[%clk 0:02:54.4]} 3. Bb5 {[%clk 0:03:01.4]} 3... a6 {[%clk 0:02:53.9]}
4. Ba4 {[%clk 0:03:01.7]} 4... Nf6 {[%clk 0:02:51]} 5. d3 {[%clk 0:03:02.2]}
5... d6 {[%clk 0:02:49.6]} 6. c4 {[%clk 0:03:01.3]} 6... g6 {[%clk 0:02:47.9]}
7. Nc3 {[%clk 0:03:01.3]} 7... Bg7 {[%clk 0:02:48.1]} 8. Nd5 {[%clk 0:03:01.8]}
8... Nd7 {[%clk 0:02:43.4]} 9. Bg5 {[%clk 0:02:55]} 9... f6 {[%clk 0:02:42.7]}
10. Be3 {[%clk 0:02:55.6]} 10... Nc5 {[%clk 0:02:33.5]} 11. Bc2 {[%clk
0:02:35.2]} 11... Ne6 {[%clk 0:02:30.3]} 12. b4 {[%clk 0:02:27.3]} 12... O-O
{[%clk 0:02:27]} 13. O-O {[%clk 0:02:18.4]} 13... f5 {[%clk 0:02:25.4]} 14. b5
{[%clk 0:02:16.4]} 14... f4 {[%clk 0:01:55.9]} 15. bxc6 {[%clk 0:02:07.2]} 15...
fxe3 {[%clk 0:01:55.5]} 16. cxb7 {[%clk 0:01:49.2]} 16... exf2+ {[%clk
0:01:54.6]} 17. Rxf2 {[%clk 0:01:50.1]} 17... Bxb7 {[%clk 0:01:54.7]} 18. Rb1
{[%clk 0:01:49.3]} 18... Rb8 {[%clk 0:01:48.4]} 19. Rf1 {[%clk 0:01:39.9]} 19...
Bh6 {[%clk 0:01:47.6]} 20. Kh1 {[%clk 0:01:37.8]} 20... Kg7 {[%clk 0:01:34.6]}
21. Qe1 {[%clk 0:01:16.2]} 21... c6 {[%clk 0:01:14.4]} 22. Ne3 {[%clk
0:01:14.2]} 22... a5 {[%clk 0:01:08.9]} 23. Ng4 {[%clk 0:01:09.4]} 23... Bg5
{[%clk 0:01:02.8]} 24. Qc3 {[%clk 0:00:42.4]} 24... Qc7 {[%clk 0:00:29]} 25. c5
{[%clk 0:00:36.8]} 25... dxc5 {[%clk 0:00:15.3]} 26. Bb3 {[%clk 0:00:35.1]}
26... Bc8 {[%clk 0:00:12]} 27. Bxe6 {[%clk 0:00:27.6]} 27... Rxb1 {[%clk
0:00:11.3]} 28. Rxb1 {[%clk 0:00:22.1]} 28... Bxe6 {[%clk 0:00:11.5]} 29. Nxg5
{[%clk 0:00:20.6]} 29... Bxg4 {[%clk 0:00:11.2]} 30. h3 {[%clk 0:00:21.1]} 30...
h6 {[%clk 0:00:10.9]} 31. hxg4 {[%clk 0:00:15.9]} 31... hxg5 {[%clk 0:00:11.3]}
32. Qxc5 {[%clk 0:00:16.6]} 32... Rd8 {[%clk 0:00:10.9]} 33. Rb3 {[%clk
0:00:12.6]} 33... a4 {[%clk 0:00:09.9]} 34. Rc3 {[%clk 0:00:13.1]} 34... Rd4
{[%clk 0:00:08.7]} 35. Kg1 {[%clk 0:00:10.6]} 35... Qd6 {[%clk 0:00:08.6]} 36.
Qxc6 {[%clk 0:00:07.6]} 36... Qxc6 {[%clk 0:00:08.5]} 37. Rxc6 {[%clk
0:00:08.5]} 37... Rxd3 {[%clk 0:00:09.1]} 38. Re6 {[%clk 0:00:08.1]} 38... Ra3
{[%clk 0:00:07.7]} 39. Rxe5 {[%clk 0:00:08.6]} 39... Rxa2 {[%clk 0:00:08.6]} 40.
Rxg5 {[%clk 0:00:08.7]} 40... Kf6 {[%clk 0:00:08.6]} 41. Ra5 {[%clk 0:00:09]}
41... a3 {[%clk 0:00:08.2]} 42. g5+ {[%clk 0:00:09.4]} 42... Ke6 {[%clk
0:00:08.4]} 43. Kh2 {[%clk 0:00:09.8]} 43... Kd6 {[%clk 0:00:07.4]} 44. Ra6+
{[%clk 0:00:09.6]} 44... Ke5 {[%clk 0:00:06.8]} 45. Rxg6 {[%clk 0:00:10]} 45...
Kxe4 {[%clk 0:00:05.8]} 46. Ra6 {[%clk 0:00:08.1]} 46... Kf5 {[%clk 0:00:05.8]}
47. g6 {[%clk 0:00:08.7]} 47... Rb2 {[%clk 0:00:03.9]} 48. g7 {[%clk 0:00:08.9]}
48... Rb8 {[%clk 0:00:03.6]} 49. Rxa3 {[%clk 0:00:09.1]} 49... Kf6 {[%clk
0:00:02.2]} 50. Ra7 {[%clk 0:00:09.2]} 50... Rg8 {[%clk 0:00:02.1]} 51. Kg3
{[%clk 0:00:09.4]} 51... Rxg7+ {[%clk 0:00:02.5]} 52. Rxg7 {[%clk 0:00:09.1]}
52... Kxg7 {[%clk 0:00:03.4]} 53. Kg4 {[%clk 0:00:07.3]} 53... Kg6 {[%clk
0:00:03]} 54. g3 {[%clk 0:00:07.7]} 54... Kg7 {[%clk 0:00:02.8]} 55. Kg5 {[%clk
0:00:08.1]} 55... Kf7 {[%clk 0:00:03.4]} 56. Kh6 {[%clk 0:00:08.1]} 56... Kg8
{[%clk 0:00:03.4]} 57. Kg6 {[%clk 0:00:08.5]} 57... Kf8 {[%clk 0:00:03.4]} 58.
g4 {[%clk 0:00:08.5]} 58... Kg8 {[%clk 0:00:03.6]} 59. g5 {[%clk 0:00:09]} 59...
Kh8 {[%clk 0:00:04.2]} 60. Kf7 {[%clk 0:00:09.3]} 60... Kh7 {[%clk 0:00:04.7]}
61. g6+ {[%clk 0:00:09.9]} 1-0

[Event "*** Titled Tuesday Blitz"]
[Site "Chess.com"]
[Date "2021.04.20"]
[Round "5"]
[White "FGHSMN"]
[Black "azikom"]
[Result "1/2-1/2"]
[WhiteElo "2493"]
[BlackElo "2647"]
[TimeControl "180+1"]
[EndTime "10:55:59 PDT"]
[Termination "Game drawn by repetition"]

1. e4 {[%clk 0:03:00.9]} 1... e5 {[%clk 0:02:59.1]} 2. Nf3 {[%clk 0:03:00.2]}
2... Nc6 {[%clk 0:02:59.7]} 3. Bc4 {[%clk 0:02:59.1]} 3... Bc5 {[%clk
0:02:58.5]} 4. d3 {[%clk 0:02:58.3]} 4... d6 {[%clk 0:02:58.3]} 5. a4 {[%clk
0:02:56.8]} 5... a6 {[%clk 0:02:57.4]} 6. c3 {[%clk 0:02:53.5]} 6... Ba7 {[%clk
0:02:55.6]} 7. O-O {[%clk 0:02:49.9]} 7... Nf6 {[%clk 0:02:53.8]} 8. Nbd2 {[%clk
0:02:47.4]} 8... Ne7 {[%clk 0:02:52]} 9. d4 {[%clk 0:02:37.2]} 9... Ng6 {[%clk
0:02:49.7]} 10. Re1 {[%clk 0:02:32.5]} 10... O-O {[%clk 0:02:48.6]} 11. Bb3
{[%clk 0:02:22.5]} 11... h6 {[%clk 0:02:47.7]} 12. Nf1 {[%clk 0:02:19.3]} 12...
Bg4 {[%clk 0:02:42.8]} 13. Ng3 {[%clk 0:01:55.2]} 13... Bxf3 {[%clk 0:02:32.6]}
14. Qxf3 {[%clk 0:01:56.1]} 14... exd4 {[%clk 0:02:32.3]} 15. cxd4 {[%clk
0:01:45.2]} 15... Bxd4 {[%clk 0:02:24.9]} 16. Nf5 {[%clk 0:01:45]} 16... Be5
{[%clk 0:02:24]} 17. Qh3 {[%clk 0:01:35.6]} 17... Nh7 {[%clk 0:02:19]} 18. Qh5
{[%clk 0:01:20.4]} 18... Nf4 {[%clk 0:01:46.5]} 19. Qg4 {[%clk 0:00:54.5]} 19...
Qg5 {[%clk 0:01:37.3]} 20. Qf3 {[%clk 0:00:53.9]} 20... Qh5 {[%clk 0:01:28.3]}
21. Qxh5 {[%clk 0:00:17.2]} 21... Nxh5 {[%clk 0:01:27.6]} 22. g3 {[%clk
0:00:14.9]} 22... Ng5 {[%clk 0:00:30.3]} 23. Kg2 {[%clk 0:00:14.2]} 23... Ne6
{[%clk 0:00:30]} 24. f4 {[%clk 0:00:12.6]} 24... Bf6 {[%clk 0:00:29.4]} 25. Kf3
{[%clk 0:00:11]} 25... Nd4+ {[%clk 0:00:27]} 26. Nxd4 {[%clk 0:00:09.8]} 26...
Bxd4 {[%clk 0:00:27.4]} 27. e5 {[%clk 0:00:10.3]} 27... dxe5 {[%clk 0:00:26.7]}
28. fxe5 {[%clk 0:00:11.2]} 28... g6 {[%clk 0:00:24]} 29. Bxh6 {[%clk
0:00:09.9]} 29... Ng7 {[%clk 0:00:24.3]} 30. Kg2 {[%clk 0:00:09.7]} 30... c5
{[%clk 0:00:23.8]} 31. Rab1 {[%clk 0:00:09.3]} 31... Rae8 {[%clk 0:00:22.9]} 32.
Bxg7 {[%clk 0:00:09.5]} 32... Kxg7 {[%clk 0:00:22.8]} 33. Bd5 {[%clk 0:00:09.9]}
33... b6 {[%clk 0:00:21.7]} 34. b3 {[%clk 0:00:10.2]} 34... Rxe5 {[%clk
0:00:21.4]} 35. Rxe5 {[%clk 0:00:09.8]} 35... Bxe5 {[%clk 0:00:21.6]} 36. Bc4
{[%clk 0:00:10.7]} 36... a5 {[%clk 0:00:21.2]} 37. Rd1 {[%clk 0:00:11.6]} 37...
Bd4 {[%clk 0:00:21.2]} 38. Re1 {[%clk 0:00:12]} 38... Kf6 {[%clk 0:00:20.4]} 39.
Rf1+ {[%clk 0:00:12]} 39... Ke7 {[%clk 0:00:20.3]} 40. h4 {[%clk 0:00:12.6]}
40... f5 {[%clk 0:00:19.9]} 41. Kf3 {[%clk 0:00:13.2]} 41... Rf6 {[%clk
0:00:19.7]} 42. Re1+ {[%clk 0:00:13.6]} 42... Kd7 {[%clk 0:00:19.9]} 43. Kf4
{[%clk 0:00:14.1]} 43... Rd6 {[%clk 0:00:19.8]} 44. Re2 {[%clk 0:00:12.5]} 44...
Bc3 {[%clk 0:00:19.7]} 45. Kf3 {[%clk 0:00:10.6]} 45... Ba1 {[%clk 0:00:18.6]}
46. g4 {[%clk 0:00:10.6]} 46... fxg4+ {[%clk 0:00:18.5]} 47. Kxg4 {[%clk
0:00:11.5]} 47... Rd4+ {[%clk 0:00:17.8]} 48. Kg5 {[%clk 0:00:11.4]} 48... Bc3
{[%clk 0:00:17.6]} 49. Kxg6 {[%clk 0:00:07.3]} 49... Rxh4 {[%clk 0:00:17.4]} 50.
Kf5 {[%clk 0:00:07.9]} 50... Bd4 {[%clk 0:00:16.5]} 51. Bb5+ {[%clk 0:00:07.3]}
51... Kc7 {[%clk 0:00:15.3]} 52. Re7+ {[%clk 0:00:07.3]} 52... Kc8 {[%clk
0:00:15.1]} 53. Re6 {[%clk 0:00:07.4]} 53... Kc7 {[%clk 0:00:14.9]} 54. Rc6+
{[%clk 0:00:06.9]} 54... Kb7 {[%clk 0:00:15]} 55. Re6 {[%clk 0:00:07.8]} 55...
Rh5+ {[%clk 0:00:14.2]} 56. Ke4 {[%clk 0:00:08.1]} 56... Rh7 {[%clk 0:00:13.8]}
57. Kd5 {[%clk 0:00:08]} 57... Kc7 {[%clk 0:00:13.6]} 58. Rc6+ {[%clk
0:00:07.6]} 58... Kb7 {[%clk 0:00:13.7]} 59. Re6 {[%clk 0:00:08]} 59... Kc7
{[%clk 0:00:13.9]} 60. Rc6+ {[%clk 0:00:07]} 60... Kb7 {[%clk 0:00:14.1]} 61.
Re6 {[%clk 0:00:07.2]} 1/2-1/2

[Event "*** Titled Tuesday Blitz"]
[Site "Chess.com"]
[Date "2021.04.20"]
[Round "5"]
[White "profofchess"]
[Black "yuki_chess123"]
[Result "1-0"]
[WhiteElo "2502"]
[BlackElo "2245"]
[TimeControl "180+1"]
[EndTime "10:56:00 PDT"]
[Termination "profofchess won on time"]

1. e4 {[%clk 0:03:00.9]} 1... g6 {[%clk 0:02:59.3]} 2. d4 {[%clk 0:03:00.2]}
2... Bg7 {[%clk 0:02:59.4]} 3. Nc3 {[%clk 0:03:01.1]} 3... c6 {[%clk 0:02:59.7]}
4. Nf3 {[%clk 0:03:00.7]} 4... d5 {[%clk 0:02:59.8]} 5. h3 {[%clk 0:03:01.1]}
5... f6 {[%clk 0:02:59.6]} 6. Bd3 {[%clk 0:02:58.1]} 6... Nh6 {[%clk 0:02:59.8]}
7. exd5 {[%clk 0:02:57.8]} 7... cxd5 {[%clk 0:02:59.6]} 8. Bf4 {[%clk
0:02:58.1]} 8... Nf7 {[%clk 0:02:58.2]} 9. O-O {[%clk 0:02:58.1]} 9... O-O
{[%clk 0:02:52.2]} 10. Re1 {[%clk 0:02:57.8]} 10... Nc6 {[%clk 0:02:52]} 11. Bb5
{[%clk 0:02:39.3]} 11... e5 {[%clk 0:02:21.3]} 12. Bxc6 {[%clk 0:02:30.6]} 12...
bxc6 {[%clk 0:02:20.8]} 13. dxe5 {[%clk 0:02:30.7]} 13... fxe5 {[%clk
0:02:21.5]} 14. Nxe5 {[%clk 0:02:30.7]} 14... Nxe5 {[%clk 0:02:21.9]} 15. Bxe5
{[%clk 0:02:30.7]} 15... Bxe5 {[%clk 0:02:22.2]} 16. Rxe5 {[%clk 0:02:30.7]}
16... Rxf2 {[%clk 0:02:22.5]} 17. Qd4 {[%clk 0:02:07.4]} 17... Rf5 {[%clk
0:02:13.3]} 18. Rae1 {[%clk 0:02:04.8]} 18... Rxe5 {[%clk 0:02:12.8]} 19. Qxe5
{[%clk 0:01:56.8]} 19... Bf5 {[%clk 0:02:08.3]} 20. Na4 {[%clk 0:01:39.8]} 20...
Qa5 {[%clk 0:01:54.6]} 21. b3 {[%clk 0:01:21]} 21... Rf8 {[%clk 0:01:50.7]} 22.
c4 {[%clk 0:01:18.2]} 22... Qd2 {[%clk 0:01:37.9]} 23. cxd5 {[%clk 0:01:05.5]}
23... cxd5 {[%clk 0:01:30.3]} 24. Re2 {[%clk 0:00:57.8]} 24... Qd1+ {[%clk
0:01:13.6]} 25. Re1 {[%clk 0:00:58]} 25... Qd2 {[%clk 0:01:12.9]} 26. Qe2 {[%clk
0:00:55.4]} 26... Qd4+ {[%clk 0:01:06.8]} 27. Qe3 {[%clk 0:00:36.1]} 27... Qxe3+
{[%clk 0:01:02.8]} 28. Rxe3 {[%clk 0:00:37]} 28... d4 {[%clk 0:01:03.5]} 29. Re2
{[%clk 0:00:37]} 29... Bb1 {[%clk 0:00:58.6]} 30. Rd2 {[%clk 0:00:35.1]} 30...
d3 {[%clk 0:00:55.9]} 31. Nc5 {[%clk 0:00:33.6]} 31... Rc8 {[%clk 0:00:42.6]}
32. b4 {[%clk 0:00:33.4]} 32... a5 {[%clk 0:00:43]} 33. a3 {[%clk 0:00:33.7]}
33... axb4 {[%clk 0:00:42.9]} 34. axb4 {[%clk 0:00:34.6]} 34... Rb8 {[%clk
0:00:38.2]} 35. Rb2 {[%clk 0:00:19.6]} 35... Bc2 {[%clk 0:00:36.9]} 36. Ne4
{[%clk 0:00:19.7]} 36... Re8 {[%clk 0:00:30.1]} 37. Nf2 {[%clk 0:00:16.7]} 37...
Re1+ {[%clk 0:00:22.5]} 38. Kh2 {[%clk 0:00:16.7]} 38... Re2 {[%clk 0:00:23.2]}
39. Kg3 {[%clk 0:00:17]} 39... Rxf2 {[%clk 0:00:21]} 40. Kxf2 {[%clk 0:00:04.4]}
40... d2 {[%clk 0:00:21.4]} 41. Rxc2 {[%clk 0:00:04.5]} 41... d1=Q {[%clk
0:00:21.5]} 42. Re2 {[%clk 0:00:04]} 42... Qd4+ {[%clk 0:00:20.7]} 43. Re3
{[%clk 0:00:03.8]} 43... Qxb4 {[%clk 0:00:20.5]} 44. Rf3 {[%clk 0:00:04.2]}
44... Qd4+ {[%clk 0:00:20.3]} 45. Kg3 {[%clk 0:00:04.6]} 45... Kg7 {[%clk
0:00:20.7]} 46. Kh2 {[%clk 0:00:04.9]} 46... g5 {[%clk 0:00:20.6]} 47. Kg3
{[%clk 0:00:05.5]} 47... h5 {[%clk 0:00:20.7]} 48. Kh2 {[%clk 0:00:05.9]} 48...
Kg6 {[%clk 0:00:20.5]} 49. Kg3 {[%clk 0:00:05.3]} 49... h4+ {[%clk 0:00:19.2]}
50. Kh2 {[%clk 0:00:04.9]} 50... Qe5+ {[%clk 0:00:19.3]} 51. Kg1 {[%clk
0:00:04.8]} 51... Qe2 {[%clk 0:00:19.2]} 52. Kh1 {[%clk 0:00:03.6]} 52... Kh5
{[%clk 0:00:15.6]} 53. Kg1 {[%clk 0:00:03.9]} 53... Qe1+ {[%clk 0:00:15.1]} 54.
Kh2 {[%clk 0:00:03.9]} 54... Qe5+ {[%clk 0:00:13.6]} 55. Kg1 {[%clk 0:00:04]}
55... Qe4 {[%clk 0:00:12.7]} 56. Kf2 {[%clk 0:00:04]} 56... Qd4+ {[%clk
0:00:10.9]} 57. Kf1 {[%clk 0:00:03.8]} 57... g4 {[%clk 0:00:09.7]} 58. hxg4+
{[%clk 0:00:03.7]} 58... Kxg4 {[%clk 0:00:09.3]} 59. Rh3 {[%clk 0:00:03.8]}
59... Qd2 {[%clk 0:00:02.4]} 60. Kg1 {[%clk 0:00:04]} 60... Qe1+ {[%clk
0:00:02.2]} 61. Kh2 {[%clk 0:00:04.4]} 61... Qf2 {[%clk 0:00:02.4]} 62. Rf3
{[%clk 0:00:04.6]} 62... Qe1 {[%clk 0:00:02]} 63. Rh3 {[%clk 0:00:04.8]} 63...
Qe5+ {[%clk 0:00:01.6]} 64. Kh1 {[%clk 0:00:04.9]} 1-0